Workbook

Sheet 销售表
A2: =R35 -> 123754664000
B3: 一月 | C3: 二月 | D3: 三月 | E3: 第一季度 | F3: 四月 | G3: 五月 | H3: 六月 | I3: 第二季度 | J3: 七月 | K3: 八月 | L3: 九月 | M3: 第三季度 | N3: 十月 | O3: 十一月 | P3: 十二月 | Q3: 第四季度 | R3: 总计
A4: 中型
A5: 帕萨特 | B5: 340491000 | C5: 259697000 | D5: 384833000 | E5: =SUM(B5:D5) -> 985021000 | F5: 798300000 | G5: 974237000 | H5: 83470000 | I5: =SUM(F5:H5) -> 1856007000 | J5: 90151000 | K5: 94868000 | L5: 955420000 | M5: =SUM(J5:L5) -> 1140439000 | N5: 817056000 | O5: 82067000 | P5: 216727000 | Q5: =SUM(N5:P5) -> 1115850000 | R5: =SUM(Q5,M5,I5,E5) -> 5097317000
A6: 迈腾 | B6: 937033000 | C6: 771692000 | D6: 866755000 | E6: 2575480000 | F6: 620418000 | G6: 496938000 | H6: 40267000 | I6: =SUM(F6:H6) -> 1157623000 | J6: 645726000 | K6: 169666000 | L6: 716347000 | M6: 1531739000 | N6: 173387000 | O6: 319287000 | P6: 395591000 | Q6: 888265000 | R6: =SUM(Q6,M6,I6,E6) -> 6153107000
A7: 小计 | B7: =SUM(B5:B6) -> 1277524000 | C7: 1031389000 | D7: 1251588000 | E7: =SUM(E5:E6) -> 3560501000 | F7: 1418718000 | G7: 1471175000 | H7: 123737000 | I7: =SUM(I5:I6) -> 3013630000 | J7: 735877000 | K7: 264534000 | L7: 1671767000 | M7: =SUM(M5:M6) -> 2672178000 | N7: 990443000 | O7: 401354000 | P7: 612318000 | Q7: =SUM(Q5:Q6) -> 2004115000 | R7: =SUM(R5:R6) -> 11250424000
A9: 中大型
A10: 奥迪A6L | B10: 340491000 | C10: 259697000 | D10: 384833000 | E10: 985021000 | F10: 798300000 | G10: 974237000 | H10: 83470000 | I10: 1856007000 | J10: 90151000 | K10: 94868000 | L10: 955420000 | M10: 1140439000 | N10: 817056000 | O10: 82067000 | P10: 216727000 | Q10: 1115850000 | R10: =SUM(Q10,M10,I10,E10) -> 5097317000
A11: 索纳塔八 | B11: 937033000 | C11: 771692000 | D11: 866755000 | E11: 2575480000 | F11: 620418000 | G11: 496938000 | H11: 40267000 | I11: 1157623000 | J11: 645726000 | K11: 169666000 | L11: 716347000 | M11: 1531739000 | N11: 173387000 | O11: 319287000 | P11: 395591000 | Q11: 888265000 | R11: 6153107000
A12: 宝马5系 | B12: 340491000 | C12: 259697000 | D12: 384833000 | E12: 985021000 | F12: 798300000 | G12: 974237000 | H12: 83470000 | I12: 1856007000 | J12: 90151000 | K12: 94868000 | L12: 955420000 | M12: 1140439000 | N12: 817056000 | O12: 82067000 | P12: 216727000 | Q12: 1115850000 | R12: 5097317000
A13: 奔驰E级 | B13: 937033000 | C13: 771692000 | D13: 866755000 | E13: 2575480000 | F13: 620418000 | G13: 496938000 | H13: 40267000 | I13: 1157623000 | J13: 645726000 | K13: 169666000 | L13: 716347000 | M13: 1531739000 | N13: 173387000 | O13: 319287000 | P13: 395591000 | Q13: 888265000 | R13: 6153107000
A14: 小计 | B14: =SUM(B10:B13) -> 2555048000 | C14: 2062778000 | D14: 2503176000 | E14: =SUM(E10:E13) -> 7121002000 | F14: 2837436000 | G14: 2942350000 | H14: 247474000 | I14: =SUM(I10:I13) -> 6027260000 | J14: 1471754000 | K14: 529068000 | L14: 3343534000 | M14: =SUM(M10:M13) -> 5344356000 | N14: 1980886000 | O14: 802708000 | P14: 1224636000 | Q14: =SUM(Q10:Q13) -> 4008230000 | R14: =SUM(R10:R13) -> 22500848000
A16: SUV
A17: 哈弗H6 | B17: 340491000 | C17: 259697000 | D17: 384833000 | E17: 985021000 | F17: 798300000 | G17: 974237000 | H17: 83470000 | I17: 1856007000 | J17: 90151000 | K17: 94868000 | L17: 955420000 | M17: 1140439000 | N17: 817056000 | O17: 82067000 | P17: 216727000 | Q17: 1115850000 | R17: =SUM(Q17,M17,I17,E17) -> 5097317000
A18: 途观 | B18: 937033000 | C18: 771692000 | D18: 866755000 | E18: 2575480000 | F18: 620418000 | G18: 496938000 | H18: 40267000 | I18: 1157623000 | J18: 645726000 | K18: 169666000 | L18: 716347000 | M18: 1531739000 | N18: 173387000 | O18: 319287000 | P18: 395591000 | Q18: 888265000 | R18: 6153107000
A19: ix35 | B19: 340491000 | C19: 259697000 | D19: 384833000 | E19: 985021000 | F19: 798300000 | G19: 974237000 | H19: 83470000 | I19: 1856007000 | J19: 90151000 | K19: 94868000 | L19: 955420000 | M19: 1140439000 | N19: 817056000 | O19: 82067000 | P19: 216727000 | Q19: 1115850000 | R19: 5097317000
A20: 逍客 | B20: 937033000 | C20: 771692000 | D20: 866755000 | E20: 2575480000 | F20: 620418000 | G20: 496938000 | H20: 40267000 | I20: 1157623000 | J20: 645726000 | K20: 169666000 | L20: 716347000 | M20: 1531739000 | N20: 173387000 | O20: 319287000 | P20: 395591000 | Q20: 888265000 | R20: 6153107000
A21: 哈弗M3 | B21: 340491000 | C21: 259697000 | D21: 384833000 | E21: 985021000 | F21: 798300000 | G21: 974237000 | H21: 83470000 | I21: 1856007000 | J21: 90151000 | K21: 94868000 | L21: 955420000 | M21: 1140439000 | N21: 817056000 | O21: 82067000 | P21: 216727000 | Q21: 1115850000 | R21: 5097317000
A22: 翼虎 | B22: 937033000 | C22: 771692000 | D22: 866755000 | E22: 2575480000 | F22: 620418000 | G22: 496938000 | H22: 40267000 | I22: 1157623000 | J22: 645726000 | K22: 169666000 | L22: 716347000 | M22: 1531739000 | N22: 173387000 | O22: 319287000 | P22: 395591000 | Q22: 888265000 | R22: 6153107000
A23: 比亚迪S6 | B23: 340491000 | C23: 259697000 | D23: 384833000 | E23: 985021000 | F23: 798300000 | G23: 974237000 | H23: 83470000 | I23: 1856007000 | J23: 90151000 | K23: 94868000 | L23: 955420000 | M23: 1140439000 | N23: 817056000 | O23: 82067000 | P23: 216727000 | Q23: 1115850000 | R23: 5097317000
A24: 奥迪Q5 | B24: 937033000 | C24: 771692000 | D24: 866755000 | E24: 2575480000 | F24: 620418000 | G24: 496938000 | H24: 40267000 | I24: 1157623000 | J24: 645726000 | K24: 169666000 | L24: 716347000 | M24: 1531739000 | N24: 173387000 | O24: 319287000 | P24: 395591000 | Q24: 888265000 | R24: 6153107000
A25: 汉兰达 | B25: 340491000 | C25: 259697000 | D25: 384833000 | E25: 985021000 | F25: 798300000 | G25: 974237000 | H25: 83470000 | I25: 1856007000 | J25: 90151000 | K25: 94868000 | L25: 955420000 | M25: 1140439000 | N25: 817056000 | O25: 82067000 | P25: 216727000 | Q25: 1115850000 | R25: 5097317000
A26: CS35 | B26: 937033000 | C26: 771692000 | D26: 866755000 | E26: 2575480000 | F26: 620418000 | G26: 496938000 | H26: 40267000 | I26: 1157623000 | J26: 645726000 | K26: 169666000 | L26: 716347000 | M26: 1531739000 | N26: 173387000 | O26: 319287000 | P26: 395591000 | Q26: 888265000 | R26: 6153107000
A27: 翼搏 | B27: 340491000 | C27: 259697000 | D27: 384833000 | E27: 985021000 | F27: 798300000 | G27: 974237000 | H27: 83470000 | I27: 1856007000 | J27: 90151000 | K27: 94868000 | L27: 955420000 | M27: 1140439000 | N27: 817056000 | O27: 82067000 | P27: 216727000 | Q27: 1115850000 | R27: 5097317000
A28: 智跑 | B28: 937033000 | C28: 771692000 | D28: 866755000 | E28: 2575480000 | F28: 620418000 | G28: 496938000 | H28: 40267000 | I28: 1157623000 | J28: 645726000 | K28: 169666000 | L28: 716347000 | M28: 1531739000 | N28: 173387000 | O28: 319287000 | P28: 395591000 | Q28: 888265000 | R28: 6153107000
A29: 新胜达-进口 | B29: 340491000 | C29: 259697000 | D29: 384833000 | E29: 985021000 | F29: 798300000 | G29: 974237000 | H29: 83470000 | I29: 1856007000 | J29: 90151000 | K29: 94868000 | L29: 955420000 | M29: 1140439000 | N29: 817056000 | O29: 82067000 | P29: 216727000 | Q29: 1115850000 | R29: 5097317000
A30: 奔腾X80 | B30: 937033000 | C30: 771692000 | D30: 866755000 | E30: 2575480000 | F30: 620418000 | G30: 496938000 | H30: 40267000 | I30: 1157623000 | J30: 645726000 | K30: 169666000 | L30: 716347000 | M30: 1531739000 | N30: 173387000 | O30: 319287000 | P30: 395591000 | Q30: 888265000 | R30: 6153107000
A31: 昂科拉 | B31: 340491000 | C31: 259697000 | D31: 384833000 | E31: 985021000 | F31: 798300000 | G31: 974237000 | H31: 83470000 | I31: 1856007000 | J31: 90151000 | K31: 94868000 | L31: 955420000 | M31: 1140439000 | N31: 817056000 | O31: 82067000 | P31: 216727000 | Q31: 1115850000 | R31: 5097317000
A32: 瑞虎 | B32: 937033000 | C32: 771692000 | D32: 866755000 | E32: 2575480000 | F32: 620418000 | G32: 496938000 | H32: 40267000 | I32: 1157623000 | J32: 645726000 | K32: 169666000 | L32: 716347000 | M32: 1531739000 | N32: 173387000 | O32: 319287000 | P32: 395591000 | Q32: 888265000 | R32: 6153107000
A33: 小计 | B33: =SUM(B17:B32) -> 10220192000 | C33: 8251112000 | D33: 10012704000 | E33: =SUM(E17:E32) -> 28484008000 | F33: 11349744000 | G33: 11769400000 | H33: 989896000 | I33: =SUM(I17:I32) -> 24109040000 | J33: 5887016000 | K33: 2116272000 | L33: 13374136000 | M33: =SUM(M17:M32) -> 21377424000 | N33: 7923544000 | O33: 3210832000 | P33: 4898544000 | Q33: =SUM(Q17:Q32) -> 16032920000 | R33: =SUM(R17:R32) -> 90003392000
A35: 总计 | B35: =B7+B14+B33 -> 14052764000 | C35: 11345279000 | D35: 13767468000 | E35: 39165511000 | F35: 15605898000 | G35: 16182925000 | H35: 1361107000 | I35: 33149930000 | J35: 8094647000 | K35: 2909874000 | L35: 18389437000 | M35: 29393958000 | N35: 10894873000 | O35: 4414894000 | P35: 6735498000 | Q35: 22045265000 | R35: 123754664000

Sheet 销售图
A1: 2014年第一季度销售表
A3: 地区 | B3: 一月 | C3: 二月 | D3: 三月 | E3: 四月 | F3: 五月 | G3: 六月 | H3: 小计
A4: 华北 | B4: 1200 | C4: 1131 | D4: 1014.6 | E4: 838 | F4: 1339 | G4: 458 | H4: =SUM(B4:G4) -> 5980.6
A5: 东北 | B5: 521 | C5: 1116 | D5: 372.3 | E5: 1798 | F5: 416 | G5: 1216 | H5: 5439.3
A6: 华东 | B6: 1000 | C6: 1354 | D6: 991.6 | E6: 1882 | F6: 896 | G6: 916 | H6: 7039.6
A7: 中南 | B7: 1500 | C7: 894 | D7: 1091.1 | E7: 1035 | F7: 1683 | G7: 699 | H7: 6902.1
A8: 西南 | B8: 810 | C8: 1268 | D8: 822.1 | E8: 1844 | F8: 990 | G8: 1857 | H8: 7591.1
A9: 西北 | B9: 564 | C9: 986 | D9: 1350.1 | E9: 1149 | F9: 903 | G9: 722 | H9: 5674.1
A10: 总计 | B10: =SUBTOTAL(109,B4:B9) -> 5595 | C10: 6749 | D10: 5641.8 | E10: 8546 | F10: 6227 | G10: 5868 | H10: 38626.8

Sheet 转置
A1: 销售代表 | B1: 崔亦瑶
A2: 品牌 | B2: 宝马
A3: 集团 | B3: 宝马集团
A4: 城市 | B4: 北京
A5: 销售电话 | B5: 11312410
A6: 销售网站 | B6: www.aeoaxu.com
A7: 销售代表 | B7: 李乐菱
A8: 品牌 | B8: Mini
A9: 集团 | B9: 宝马集团
A10: 城市 | B10: 天津
A11: 销售电话 | B11: 40831506
A12: 销售网站 | B12: www.fnevuo.com
A13: 销售代表 | B13: 钱明杰
A14: 品牌 | B14: 劳斯莱斯
A15: 集团 | B15: 宝马集团
A16: 城市 | B16: 上海
A17: 销售电话 | B17: 75982294
A18: 销售网站 | B18: www.npcfan.com
A19: 销售代表 | B19: 崔靖易
A20: 品牌 | B20: 克莱斯勒
A21: 集团 | B21: 克莱斯勒集团
A22: 城市 | B22: 重庆
A23: 销售电话 | B23: 96529043
A24: 销售网站 | B24: www.mauyor.com
A25: 销售代表 | B25: 康含玉
A26: 品牌 | B26: 道奇
A27: 集团 | B27: 克莱斯勒集团
A28: 城市 | B28: 石家庄
A29: 销售电话 | B29: 93512639
A30: 销售网站 | B30: www.xyhtnt.com
A31: 销售代表 | B31: 张慕青
A32: 品牌 | B32: 吉普
A33: 集团 | B33: 克莱斯勒集团
A34: 城市 | B34: 太原
A35: 销售电话 | B35: 95937385
A36: 销售网站 | B36: www.xvmbar.com
A37: 销售代表 | B37: 李若雁
A38: 品牌 | B38: 迈巴赫
A39: 集团 | B39: 戴姆勒集团
A40: 城市 | B40: 西安
A41: 销售电话 | B41: 86065424
A42: 销售网站 | B42: www.hlhref.com
A43: 销售代表 | B43: 李诗
A44: 品牌 | B44: 福莱纳
A45: 集团 | B45: 戴姆勒集团
A46: 城市 | B46: 济南
A47: 销售电话 | B47: 95210666
A48: 销售网站 | B48: www.vsihrz.com
A49: 销售代表 | B49: 李诗诗
A50: 品牌 | B50: 迈巴赫
A51: 集团 | B51: 戴姆勒集团
A52: 城市 | B52: 郑州
A53: 销售电话 | B53: 21917688
A54: 销售网站 | B54: www.wamrgk.com
A55: 销售代表 | B55: 康熠彤
A56: 品牌 | B56: 迈凯轮
A57: 集团 | B57: 戴姆勒集团
A58: 城市 | B58: 沈阳
A59: 销售电话 | B59: 70075207
A60: 销售网站 | B60: www.xkjwnx.com
A61: 销售代表 | B61: 李青槐
A62: 品牌 | B62: 奔驰
A63: 集团 | B63: 戴姆勒集团
A64: 城市 | B64: 长春
A65: 销售电话 | B65: 40888394
A66: 销售网站 | B66: www.serdic.com
A67: 销售代表 | B67: 崔夜蓉
A68: 品牌 | B68: Smart
A69: 集团 | B69: 戴姆勒集团
A70: 城市 | B70: 哈尔滨
A71: 销售电话 | B71: 92004898
A72: 销售网站 | B72: www.egmctu.com
A73: 销售代表 | B73: 李元风
A74: 品牌 | B74: 塞特拉
A75: 集团 | B75: 戴姆勒集团
A76: 城市 | B76: 南京
A77: 销售电话 | B77: 15622805
A78: 销售网站 | B78: www.uralkx.com
A79: 销售代表 | B79: 李正豪
A80: 品牌 | B80: 阿尔法·罗密欧
A81: 集团 | B81: 菲亚特集团
A82: 城市 | B82: 杭州
A83: 销售电话 | B83: 85264678
A84: 销售网站 | B84: www.qhgxco.com
A85: 销售代表 | B85: 崔峻熙
A86: 品牌 | B86: 玛莎拉蒂
A87: 集团 | B87: 菲亚特集团
A88: 城市 | B88: 合肥
A89: 销售电话 | B89: 53055149
A90: 销售网站 | B90: www.rvtoos.com
A91: 销售代表 | B91: 张山兰
A92: 品牌 | B92: 法拉利
A93: 集团 | B93: 菲亚特集团
A94: 城市 | B94: 南昌
A95: 销售电话 | B95: 45270303
A96: 销售网站 | B96: www.gkolkj.com
A97: 销售代表 | B97: 崔安蕾
A98: 品牌 | B98: 依维柯
A99: 集团 | B99: 菲亚特集团
A100: 城市 | B100: 福州
A101: 销售电话 | B101: 81141625
A102: 销售网站 | B102: www.zsdfyq.com
A103: 销售代表 | B103: 钱梦琪
A104: 品牌 | B104: 菲亚特
A105: 集团 | B105: 菲亚特集团
A106: 城市 | B106: 武汉
A107: 销售电话 | B107: 27284173
A108: 销售网站 | B108: www.xocjnl.com
A109: 销售代表 | B109: 李如波
A110: 品牌 | B110: 蓝旗亚
A111: 集团 | B111: 菲亚特集团
A112: 城市 | B112: 长沙
A113: 销售电话 | B113: 77194730
A114: 销售网站 | B114: www.dftlkc.com
A115: 销售代表 | B115: 康如彤
A116: 品牌 | B116: 福特
A117: 集团 | B117: 福特集团
A118: 城市 | B118: 成都
A119: 销售电话 | B119: 49988811
A120: 销售网站 | B120: www.ciftih.com
A121: 销售代表 | B121: 张语蓉
A122: 品牌 | B122: 林肯
A123: 集团 | B123: 福特集团
A124: 城市 | B124: 贵阳
A125: 销售电话 | B125: 79821509
A126: 销售网站 | B126: www.jjgkko.com
A127: 销售代表 | B127: 张之柔
A128: 品牌 | B128: Mercury
A129: 集团 | B129: 福特集团
A130: 城市 | B130: 昆明
A131: 销售电话 | B131: 33923855
A132: 销售网站 | B132: www.tdnjol.com
A133: 销售代表 | B133: 康傲珊
A134: 品牌 | B134: 别克
A135: 集团 | B135: 通用汽车集团
A136: 城市 | B136: 广州
A137: 销售电话 | B137: 60572671
A138: 销售网站 | B138: www.pkfmzn.com
A139: 销售代表 | B139: 钱鑫鹏
A140: 品牌 | B140: GMC
A141: 集团 | B141: 通用汽车集团
A142: 城市 | B142: 海口
A143: 销售电话 | B143: 69053280
A144: 销售网站 | B144: www.kxxaon.com
A145: 销售代表 | B145: 刘之桃
A146: 品牌 | B146: 欧宝
A147: 集团 | B147: 通用汽车集团
A148: 城市 | B148: 兰州
A149: 销售电话 | B149: 63313615
A150: 销售网站 | B150: www.cqccab.com
A151: 销售代表 | B151: 刘昊天
A152: 品牌 | B152: 凯迪拉克
A153: 集团 | B153: 通用汽车集团
A154: 城市 | B154: 西宁
A155: 销售电话 | B155: 12934982
A156: 销售网站 | B156: www.cohoef.com
A157: 销售代表 | B157: 王夏青
A158: 品牌 | B158: 霍顿
A159: 集团 | B159: 通用汽车集团
A160: 城市 | B160: 台北
A161: 销售电话 | B161: 79439660
A162: 销售网站 | B162: www.ohohqb.com
A163: 销售代表 | B163: 王芷波
A164: 品牌 | B164: 庞蒂亚克
A165: 集团 | B165: 通用汽车集团
A166: 城市 | B166: 呼和浩特
A167: 销售电话 | B167: 34601729
A168: 销售网站 | B168: www.wintcr.com
A169: 销售代表 | B169: 周又晴
A170: 品牌 | B170: 雪佛兰
A171: 集团 | B171: 通用汽车集团
A172: 城市 | B172: 乌鲁木齐
A173: 销售电话 | B173: 76515634
A174: 销售网站 | B174: www.pkdqqq.com
A175: 销售代表 | B175: 赵弘文
A176: 品牌 | B176: 五十铃
A177: 集团 | B177: 通用汽车集团
A178: 城市 | B178: 拉萨
A179: 销售电话 | B179: 64062459
A180: 销售网站 | B180: www.iwuerd.com
A181: 销售代表 | B181: 赵天荷
A182: 品牌 | B182: 土星
A183: 集团 | B183: 通用汽车集团
A184: 城市 | B184: 南宁
A185: 销售电话 | B185: 84375629
A186: 销售网站 | B186: www.peuspz.com
A187: 销售代表 | B187: 代曼文
A188: 品牌 | B188: 大宇
A189: 集团 | B189: 通用汽车集团
A190: 城市 | B190: 银川
A191: 销售电话 | B191: 14493517
A192: 销售网站 | B192: www.kshszg.com
A193: 销售代表 | B193: 代采枫
A194: 品牌 | B194: 奥兹莫比尔
A195: 集团 | B195: 通用汽车集团
A196: 城市 | B196: 香港
A197: 销售电话 | B197: 91356534
A198: 销售网站 | B198: www.oodtmq.com
A199: 销售代表 | B199: 周昊然
A200: 品牌 | B200: 沃克斯豪尔
... 2230 more rows

Sheet Sheet1

Sheet Sheet2

Sheet Sheet3
